bitfinex/quotes_SOLUSD_20240711
["timestamp","ask_amount","ask_price","bid_price","bid_amount"]
[1720732013748,22.87550495,137.65,137.61,17.2668]
[1720732014764,22.87550495,137.65,137.64,10.0]
[1720732014943,7.264,137.67,137.64,10.0]
[1720732016364,20.0,137.66,137.64,10.0]
[1720732017757,27.2642,137.66,137.64,10.0]
[1720732017949,20.0,137.66,137.64,10.0]
[1720732018664,27.2643,137.66,137.64,10.0]
[1720732020151,27.2643,137.66,137.62,17.2662]
[1720732020353,20.0,137.66,137.62,10.0]
[1720732020666,7.2656,137.64,137.62,10.0]
[1720732020964,22.90739968,137.67,137.62,10.0]
[1720732020965,7.2649,137.65,137.62,10.0]
[1720732021665,7.2644,137.66,137.62,10.0]
[1720732021855,20.0,137.65,137.62,10.0]
[1720732022351,27.265,137.65,137.62,10.0]
[1720732023068,20.0,137.65,137.62,10.0]
[1720732023863,27.2648,137.65,137.62,10.0]
[1720732024066,7.2653,137.64,137.62,10.0]
[1720732024369,27.2649,137.65,137.62,10.0]
[1720732025863,7.2653,137.64,137.62,10.0]
[1720732026460,27.265,137.65,137.62,10.0]
[1720732026652,27.265,137.65,137.6,17.2672]
[1720732027058,27.265,137.65,137.61,7.2668]
[1720732027571,20.0,137.65,137.62,10.0]
[1720732028344,20.0,137.65,137.62,17.2663]
[1720732028852,20.0,137.65,137.64,10.0]
[1720732033750,27.2648,137.65,137.64,10.0]
[1720732033946,7.2654,137.64,137.61,10.0]
[1720732035152,27.266,137.63,137.59,10.0]
[1720732035357,7.266,137.63,137.59,10.0]
[1720732035658,20.0,137.62,137.59,17.2678]
[1720732036058,20.0,137.63,137.59,17.2678]
[1720732036758,20.0,137.63,137.61,10.0]
[1720732036957,20.0,137.64,137.61,17.2668]
[1720732038467,27.2649,137.65,137.61,17.2668]
[1720732041086,10.25466515,137.68,137.64,17.2653]
[1720732041394,7.2635,137.68,137.66,10.0]
[1720732041689,7.2635,137.68,137.64,10.0]
[1720732042266,7.2638,137.67,137.64,10.0]
[1720732043369,7.2634,137.68,137.64,10.0]
[1720732043573,20.0,137.67,137.64,10.0]
[1720732043789,20.0,137.67,137.64,17.2652]
[1720732045388,20.0,137.67,137.66,10.0]
[1720732056202,20.0,137.67,137.64,45.4283]
[1720732057796,20.0,137.67,137.64,28.1632]
[1720732057973,7.2642,137.66,137.64,10.0]
[1720732058178,27.2642,137.67,137.64,10.0]
[1720732058395,1.96635956,137.66,137.62,10.0]
[1720732058581,7.2656,137.64,137.62,10.0]
[1720732058776,18.1608,137.66,137.58,28.1704]
[1720732058973,7.2665,137.62,137.58,28.1704]
[1720732059377,7.2665,137.62,137.58,35.4388]
[1720732059877,7.266,137.63,137.58,35.4388]
[1720732060077,20.0,137.62,137.59,7.2679]
[1720732060485,20.0,137.62,137.58,35.4388]
[1720732061296,7.266,137.63,137.59,7.2678]
[1720732061498,20.0,137.62,137.59,7.2678]
[1720732062203,20.0,137.62,137.58,38.1704]
[1720732062507,7.2657,137.64,137.59,7.2676]
[1720732062685,20.0,137.63,137.59,7.2676]
[1720732063204,27.2659,137.63,137.59,7.2676]
[1720732064095,27.2659,137.63,137.58,28.1704]
[1720732064096,20.0,137.63,137.6,7.2673]
[1720732064403,27.2654,137.64,137.6,7.2673]
[1720732064786,27.2654,137.64,137.59,7.2677]
[1720732064787,7.2658,137.63,137.59,7.2677]
[1720732064992,20.0,137.62,137.59,7.2677]
[1720732065504,20.0,137.63,137.59,7.2677]
[1720732067204,20.0,137.63,137.6,17.2672]
[1720732067504,0.848281,137.7,137.65,10.0]
[1720732067684,0.848281,137.7,137.67,18.1586]
[1720732067880,1.96609898,137.69,137.67,18.1586]
[1720732068091,0.848281,137.7,137.67,18.1586]
[1720732068307,1.96605659,137.69,137.65,17.2646]
[1720732068510,7.2635,137.68,137.64,18.1624]
[1720732069008,20.0,137.67,137.64,18.1624]
[1720732070405,20.0,137.67,137.64,28.1624]
[1720732071208,20.0,137.67,137.64,18.1624]
[1720732072707,27.2637,137.67,137.62,17.2662]
[1720732075319,1.96638535,137.66,137.62,17.2662]
[1720732075506,7.2643,137.66,137.62,17.2662]
[1720732075709,20.0,137.65,137.62,17.2662]
[1720732076402,20.0,137.65,137.61,18.1663]
[1720732076403,16.4526,137.64,137.55,15.612]
[1720732076609,21.9666991,137.63,137.57,7.2688]
[1720732076934,21.9666991,137.63,137.56,7.2694]
[1720732076935,7.2672,137.61,137.56,7.2694]
[1720732077107,20.0,137.6,137.56,7.2694]
[1720732078701,20.0,137.6,137.57,7.2689]
[1720732078914,20.0,137.61,137.57,7.2689]
[1720732079709,27.2669,137.61,137.57,7.2689]
[1720732079999,27.2669,137.61,137.56,7.2693]
[1720732082233,27.2669,137.61,137.57,7.2689]
[1720732083203,27.2669,137.61,137.56,7.2693]
[1720732084719,20.0,137.61,137.55,35.4438]
[1720732084918,20.0,137.62,137.55,35.4438]
[1720732085319,7.2676,137.6,137.55,35.4438]
[1720732085617,20.0,137.59,137.56,7.2694]
[1720732085795,20.0,137.59,137.55,45.4437]
[1720732088821,20.0,137.59,137.56,7.2695]
[1720732090123,20.0,137.6,137.56,7.2695]
[1720732091701,7.2682,137.59,137.55,28.1739]
[1720732092021,20.0,137.58,137.55,28.1739]
[1720732093109,20.0,137.58,137.55,38.1739]
[1720732093316,7.2672,137.61,137.56,7.2693]
[1720732093605,27.2674,137.6,137.55,45.4438]
[1720732093811,7.268,137.59,137.55,45.4438]
[1720732094012,20.0,137.58,137.55,45.4438]
[1720732095008,20.0,137.58,137.55,38.1739]
[1720732095262,20.0,137.58,137.55,28.1739]
[1720732098920,20.0,137.58,137.55,35.4439]
[1720732099739,19.5,137.58,137.55,35.4439]
[1720732100314,26.7686,137.58,137.54,7.2704]
[1720732101914,19.5,137.58,137.54,7.2704]
[1720732102114,35.1957,137.61,137.54,7.2704]
[1720732102320,7.268,137.59,137.55,7.2699]
[1720732102519,20.0,137.58,137.55,7.2699]
[1720732105518,20.0,137.58,137.53,17.2706]
[1720732105729,7.2687,137.58,137.53,17.2706]
[1720732105918,20.0,137.57,137.53,17.2706]
[1720732107135,16.89407004,137.66,137.56,10.0]
[1720732107343,20.0,137.63,137.58,7.2684]
[1720732107532,7.2664,137.62,137.57,25.4407]
[1720732107747,20.0,137.61,137.57,25.4407]
[1720732108560,27.2669,137.61,137.57,25.4407]
[1720732109232,27.2669,137.61,137.57,18.1719]
[1720732110226,27.2669,137.61,137.57,25.4409]
[1720732110438,19.5,137.61,137.57,25.4409]
[1720732111026,26.767,137.61,137.57,18.1719]
[1720732111461,7.2674,137.6,137.57,18.1719]
[1720732111752,7.2674,137.6,137.56,10.0]
[1720732112039,19.5,137.61,137.56,10.0]
[1720732112040,7.2689,137.58,137.56,10.0]
[1720732112929,7.2689,137.58,137.54,18.1764]
[1720732113623,15.8934,137.6,137.51,22.0609]
[1720732113624,34.0621,137.6,137.51,50.2405]
[1720732113826,34.0621,137.6,137.52,55.34]
[1720732113827,7.2692,137.57,137.52,55.34]
[1720732114026,7.2686,137.58,137.53,7.2707]
[1720732114238,20.0,137.57,137.53,7.2707]
[1720732114746,20.0,137.57,137.53,17.2707]
[1720732114935,20.0,137.57,137.53,35.4484]
[1720732115140,20.0,137.57,137.54,7.2705]
[1720732115523,20.0,137.57,137.53,18.1777]
[1720732115742,7.2692,137.57,137.53,18.1777]
[1720732116185,20.0,137.56,137.53,25.4488]
[1720732117248,20.0,137.56,137.53,18.1777]
[1720732117448,20.0,137.56,137.53,25.4487]
[1720732118162,20.0,137.57,137.54,10.0]
[1720732118326,20.0,137.58,137.54,17.2703]
[1720732118530,27.2685,137.58,137.54,17.2703]
[1720732120547,27.2685,137.58,137.54,10.0]
[1720732121431,22.2685,137.58,137.54,10.0]
[1720732124538,22.2685,137.58,137.54,17.2704]
[1720732124539,14.24,137.56,137.54,17.2704]
[1720732124738,14.24,137.56,137.54,10.0]
[1720732127756,14.24,137.57,137.54,17.2704]
[1720732127939,20.0,137.56,137.54,17.2704]
[1720732128555,20.0,137.56,137.55,35.4452]
[1720732128760,7.267,137.61,137.58,10.0]
[1720732129058,14.24,137.59,137.58,10.0]
[1720732129442,14.24,137.59,137.56,17.2695]
[1720732129775,7.2674,137.6,137.56,17.2695]
[1720732129940,14.24,137.58,137.56,17.2695]
[1720732130346,34.24,137.59,137.56,17.2695]
[1720732131741,14.24,137.58,137.56,17.2695]
[1720732133556,20.0,137.59,137.56,17.2695]
[1720732133760,14.24,137.58,137.56,17.2695]
[1720732134560,7.2695,137.57,137.54,10.0]
[1720732134753,7.2707,137.54,137.49,7.2729]
[1720732135072,27.2711,137.53,137.48,45.458]
[1720732135238,14.24,137.51,137.49,7.2731]
[1720732135435,7.2705,137.55,137.51,7.2721]
[1720732135739,14.24,137.53,137.51,7.2721]
[1720732136346,27.2695,137.56,137.52,10.0]
[1720732136559,14.24,137.54,137.52,10.0]
[1720732137140,14.24,137.53,137.52,10.0]
[1720732137355,20.0,137.56,137.53,10.0]
[1720732137639,14.24,137.55,137.53,10.0]
[1720732138449,7.2685,137.58,137.54,7.2706]
[1720732138646,14.24,137.55,137.53,17.271]
[1720732139050,14.24,137.54,137.53,17.271]
[1720732139451,7.2685,137.58,137.54,7.2705]
[1720732139659,14.24,137.55,137.54,7.2705]
[1720732140644,20.0,137.57,137.54,7.2705]
[1720732140954,14.24,137.57,137.55,10.0]
[1720732141152,14.24,137.57,137.55,17.27]
[1720732142061,14.24,137.57,137.55,10.0]
[1720732142246,30.15581211,137.59,137.55,10.0]
[1720732142450,14.24,137.58,137.55,17.2698]
[1720732142656,34.24,137.59,137.56,7.2694]
[1720732142852,34.24,137.59,137.57,10.0]
[1720732144869,20.0,137.59,137.57,10.0]
[1720732145043,34.24,137.59,137.57,10.0]
[1720732145243,23.67109614,137.64,137.59,10.0]
[1720732145486,15.7508,137.68,137.62,10.0]
[1720732145754,7.2637,137.67,137.63,17.2657]
[1720732145959,14.24,137.65,137.63,10.0]
[1720732147764,20.0,137.64,137.63,10.0]
[1720732149457,34.24,137.64,137.63,10.0]
[1720732150961,27.2653,137.64,137.63,10.0]
[1720732151163,41.5053,137.64,137.63,10.0]
[1720732151947,21.5053,137.64,137.63,10.0]
[1720732154560,21.5053,137.64,137.61,10.0]
[1720732156576,7.2643,137.66,137.63,20.0]
[1720732156775,34.24,137.65,137.63,20.0]
[1720732157382,34.24,137.65,137.63,10.0]
[1720732157873,14.24,137.64,137.63,10.0]
[1720732158187,34.24,137.64,137.63,10.0]
[1720732158387,34.24,137.64,137.62,10.0]
[1720732158562,41.5053,137.64,137.62,10.0]
[1720732159366,14.24,137.64,137.62,10.0]
[1720732164670,7.2643,137.66,137.64,10.0]
[1720732164872,34.24,137.65,137.64,10.0]
[1720732168164,7.2643,137.66,137.64,10.0]
[1720732168366,14.24,137.67,137.66,10.0]
[1720732169602,21.5037,137.67,137.66,10.0]
[1720732169971,41.5037,137.67,137.66,10.0]
[1720732170167,34.24,137.67,137.63,10.0]
[1720732170486,7.2644,137.66,137.63,20.0]
[1720732170677,14.24,137.65,137.63,20.0]
[1720732170870,7.2644,137.66,137.63,20.0]
[1720732171075,14.24,137.65,137.63,20.0]
[1720732171999,20.0,137.67,137.65,20.0]
[1720732172199,15.088281,137.7,137.69,10.0]
[1720732172393,0.848281,137.7,137.69,10.0]
[1720732172894,0.848281,137.7,137.67,7.2635]
[1720732173085,0.848281,137.7,137.68,10.0]
[1720732173581,14.24,137.69,137.68,10.0]
[1720732173782,15.088281,137.7,137.68,10.0]
[1720732174275,0.848281,137.7,137.69,10.0]
[1720732174581,15.088281,137.7,137.68,10.0]
[1720732174774,14.24,137.69,137.68,10.0]
[1720732180408,14.24,137.69,137.66,18.1601]
[1720732180409,14.24,137.69,137.66,35.4242]
[1720732180612,14.24,137.68,137.66,35.4242]
[1720732182584,0.848281,137.7,137.67,7.2635]
[1720732182784,14.24,137.69,137.67,7.2635]
[1720732183185,14.24,137.69,137.68,7.2631]
[1720732183491,34.24,137.69,137.68,7.2631]
[1720732183698,34.24,137.69,137.67,17.2636]
[1720732183878,34.24,137.69,137.67,7.2636]
[1720732184078,34.24,137.69,137.66,35.4241]
[1720732184492,20.0,137.69,137.67,7.2637]
[1720732184800,14.24,137.69,137.67,7.2637]
[1720732185007,14.24,137.69,137.66,35.4241]
[1720732185497,14.24,137.69,137.68,10.0]
[1720732185700,20.0,137.69,137.68,17.2632]
[1720732188398,20.0,137.69,137.68,10.0]
[1720732189484,0.848281,137.7,137.69,10.0]
[1720732189820,20.848281,137.7,137.69,10.0]
[1720732191381,20.848281,137.7,137.68,10.0]
[1720732192102,20.848281,137.7,137.69,10.0]
[1720732196103,20.848281,137.7,137.68,10.0]
[1720732197612,0.848281,137.7,137.69,75.2469]
[1720732197937,0.848281,137.7,137.69,134.8269]
[1720732200609,0.848281,137.7,137.69,98.7169]
[1720732202389,0.848281,137.7,137.69,134.8269]
[1720732203792,0.848281,137.7,137.69,112.9569]
[1720732204695,0.848281,137.7,137.69,17.2626]
[1720732205205,0.848281,137.7,137.69,31.5026]
[1720732205414,0.848281,137.7,137.69,10.0]
[1720732206204,0.848281,137.7,137.69,17.2626]
[1720732207605,0.848281,137.7,137.69,31.5026]
[1720732207790,0.848281,137.7,137.69,17.2626]
[1720732216812,0.848281,137.7,137.69,31.5026]
[1720732217512,0.848281,137.7,137.69,17.2626]
[1720732219416,0.848281,137.7,137.69,31.6726]
[1720732219764,0.848281,137.7,137.69,91.0826]
[1720732220125,0.848281,137.7,137.69,62.6026]
[1720732220330,0.848281,137.7,137.69,91.0826]
[1720732220725,0.848281,137.7,137.69,76.8426]
[1720732221907,0.848281,137.7,137.69,17.2626]
[1720732222506,0.848281,137.7,137.69,76.5026]
[1720732224823,0.848281,137.7,137.69,31.5026]
[1720732226656,0.848281,137.7,137.69,76.5026]
[1720732226835,0.848281,137.7,137.69,31.5026]
[1720732227015,0.848281,137.7,137.69,17.2626]
[1720732227217,0.848281,137.7,137.69,31.5026]
[1720732229334,0.848281,137.7,137.69,76.5026]
[1720732229541,0.848281,137.7,137.69,91.0826]
[1720732231335,258.7,137.91,137.77,20.0]
[1720732231336,0.848281,137.83,137.77,20.0]
[1720732231541,15.088281,137.83,137.8,17.2568]
[1720732231839,1.96427728,137.82,137.8,10.0]
[1720732232137,22.343581,137.83,137.8,10.0]
[1720732232337,1.96425371,137.82,137.8,10.0]
[1720732232526,22.343581,137.83,137.8,10.0]
[1720732232819,0.848281,137.83,137.82,63.8754]
[1720732233038,6.0813,137.93,137.82,63.8754]
[1720732233039,6.0813,137.93,137.85,20.0]
[1720732233268,5.10491428,137.92,137.88,18.1313]
[1720732233443,1.96342857,137.91,137.87,20.0]
[1720732233737,14.24,137.89,137.88,10.0]
[1720732234340,6.0813,137.93,137.88,10.0]
[1720732234544,14.24,137.9,137.88,10.0]
[1720732234725,6.0813,137.93,137.88,10.0]
[1720732234933,14.24,137.91,137.88,10.0]
[1720732235128,6.0813,137.93,137.88,10.0]
[1720732235326,6.0813,137.93,137.91,10.0]
[1720732235740,20.0,137.92,137.91,10.0]
[1720732235971,34.24,137.92,137.91,10.0]
[1720732236330,7.2511,137.91,137.86,10.0]
[1720732236527,7.2537,137.86,137.81,20.0]
[1720732236725,20.0,137.85,137.81,20.0]
[1720732237241,20.0,137.85,137.83,10.0]
[1720732237440,6.2166,137.86,137.78,10.0]
[1720732237642,6.2166,137.86,137.77,10.0]
[1720732237643,7.2558,137.82,137.77,10.0]
[1720732237958,20.0,137.81,137.77,27.2583]
[1720732238440,20.0,137.81,137.77,17.2583]
[1720732238646,27.2559,137.82,137.77,10.0]
[1720732238947,7.257,137.8,137.77,10.0]
[1720732239160,20.0,137.79,137.77,10.0]
[1720732239534,20.0,137.79,137.75,10.0]
[1720732239535,27.2574,137.79,137.75,10.0]
[1720732239735,20.0,137.79,137.75,10.0]
[1720732239948,27.2574,137.79,137.75,10.0]
[1720732240249,7.258,137.78,137.75,10.0]
[1720732240429,26.368,137.77,137.73,10.0]
[1720732241445,33.6265,137.77,137.73,10.0]
[1720732241847,33.6265,137.77,137.71,17.2616]
[1720732243053,33.6265,137.77,137.73,10.0]
[1720732244529,26.368,137.77,137.71,10.0]
[1720732244833,7.2621,137.7,137.63,28.1635]
[1720732245035,20.0,137.69,137.63,35.4292]
[1720732245233,27.2627,137.69,137.63,35.4292]
[1720732246956,27.2627,137.69,137.63,10.0]
[1720732246957,6.0765,137.68,137.63,10.0]
[1720732247134,6.2465,137.68,137.61,17.2664]
[1720732247333,20.0,137.67,137.61,10.0]
[1720732247540,7.2652,137.65,137.59,35.4364]
[1720732247739,20.0,137.64,137.6,7.2673]
[1720732248137,20.0,137.64,137.59,35.4365]
[1720732248347,27.2655,137.64,137.59,35.4365]
[1720732248545,27.2655,137.64,137.59,28.1686]
[1720732248746,20.0,137.64,137.59,35.4363]
[1720732248948,20.0,137.64,137.6,7.2672]
[1720732249582,20.0,137.64,137.61,10.0]
[1720732250155,20.0,137.64,137.61,17.2666]
[1720732250653,20.0,137.64,137.61,35.4333]
[1720732251049,20.0,137.64,137.61,28.1666]
[1720732251860,27.2654,137.64,137.59,10.0]
[1720732252755,27.2654,137.64,137.61,10.0]
[1720732253846,20.0,137.64,137.61,10.0]
[1720732254059,20.0,137.67,137.61,20.0]
[1720732254361,7.2643,137.66,137.61,27.2667]
[1720732254546,20.0,137.65,137.62,10.0]
[1720732255463,20.0,137.65,137.62,17.2663]
[1720732255663,20.0,137.66,137.62,17.2663]
[1720732255866,20.0,137.66,137.62,10.0]
[1720732256929,20.0,137.66,137.64,10.0]
[1720732257074,27.2641,137.67,137.62,7.2663]
[1720732257367,20.0,137.67,137.61,28.1665]
[1720732257568,20.0,137.67,137.63,10.0]
[1720732257762,7.2644,137.66,137.63,10.0]
[1720732257972,20.0,137.65,137.63,10.0]
[1720732260569,20.0,137.66,137.63,10.0]
[1720732261251,20.0,137.66,137.63,28.1641]
[1720732261447,2.88546208,137.69,137.63,28.1641]
[1720732261448,20.0,137.67,137.65,10.0]
[1720732261776,7.2627,137.69,137.67,10.0]
[1720732261951,7.2627,137.69,137.66,10.0]
[1720732262759,22.6719,137.7,137.66,10.0]
[1720732264071,20.0,137.69,137.66,10.0]
[1720732265472,27.2628,137.69,137.66,10.0]
[1720732266650,27.2628,137.69,137.68,10.0]
[1720732266651,20.0,137.69,137.68,10.0]
[1720732266874,27.2626,137.69,137.68,10.0]
[1720732268372,20.0,137.69,137.63,10.0]
[1720732268577,28.36,137.7,137.64,10.0]
[1720732268780,28.36,137.68,137.64,10.0]
[1720732268963,20.0,137.67,137.61,10.0]
[1720732269163,16.557,137.66,137.61,20.0]
[1720732269469,20.0,137.65,137.61,20.0]
[1720732269669,20.0,137.65,137.63,10.0]
[1720732270963,7.2653,137.64,137.62,10.0]
[1720732271169,27.2649,137.65,137.62,10.0]
[1720732271464,13.68006415,137.65,137.62,10.0]
[1720732271664,13.68006415,137.65,137.62,35.4315]
[1720732271868,7.2654,137.64,137.61,10.0]
[1720732272767,20.94496415,137.65,137.61,10.0]
[1720732272978,20.94496415,137.65,137.61,17.2669]
[1720732273481,7.2653,137.64,137.61,10.0]
[1720732273779,20.0,137.63,137.61,10.0]
[1720732275470,20.0,137.64,137.61,10.0]
[1720732275880,20.0,137.64,137.61,17.2668]
[1720732276081,20.0,137.65,137.62,10.0]
[1720732277061,20.0,137.65,137.64,10.0]
[1720732277567,20.0,137.65,137.62,20.0]
[1720732277968,27.2648,137.65,137.62,20.0]
[1720732278175,27.2648,137.65,137.62,10.0]
[1720732278980,7.2654,137.64,137.6,27.2674]
[1720732279182,20.0,137.63,137.6,27.2674]
[1720732280377,20.0,137.63,137.6,20.0]
[1720732281192,20.0,137.63,137.6,27.2672]
[1720732281381,20.0,137.63,137.6,20.0]
[1720732281685,7.2665,137.62,137.58,38.1704]
[1720732281883,20.0,137.61,137.58,38.1704]
[1720732282266,20.0,137.61,137.58,20.0]
[1720732282467,20.0,137.61,137.57,7.2688]
[1720732282783,27.2669,137.61,137.57,7.2688]
[1720732282963,20.0,137.61,137.58,10.0]
[1720732283163,20.0,137.61,137.58,20.0]
[1720732283763,20.0,137.61,137.58,10.0]
[1720732284360,44.3122,137.64,137.56,10.0]
[1720732284361,7.2676,137.6,137.56,20.0]
[1720732284565,20.0,137.59,137.56,20.0]
[1720732285575,20.0,137.59,137.56,27.2693]
[1720732285775,20.0,137.6,137.56,27.2693]
[1720732286080,20.0,137.6,137.57,25.4412]
[1720732286286,20.0,137.6,137.57,18.1724]
[1720732286962,27.2674,137.6,137.56,27.2693]
[1720732288517,20.0,137.6,137.54,38.1755]
[1720732288684,20.0,137.61,137.54,38.1755]
[1720732289375,7.2681,137.59,137.54,45.446]
[1720732289584,20.0,137.58,137.54,45.446]
[1720732289784,27.2688,137.58,137.54,38.1755]
[1720732289979,27.2688,137.58,137.54,45.446]
[1720732291090,27.2688,137.58,137.54,38.1755]
[1720732294592,27.2688,137.58,137.54,28.1755]
[1720732295101,7.2693,137.57,137.52,27.2715]
[1720732295393,20.0,137.58,137.52,27.2715]
[1720732295394,27.2696,137.56,137.52,27.2715]
[1720732295577,7.2696,137.56,137.52,27.2715]
[1720732295978,7.2692,137.57,137.52,27.2715]
[1720732296589,7.2696,137.56,137.52,27.2715]
[1720732296782,20.0,137.58,137.52,27.2715]
[1720732296783,27.2701,137.55,137.52,10.0]
[1720732296984,7.2701,137.55,137.52,10.0]
[1720732297495,20.0,137.54,137.52,10.0]
[1720732297675,20.0,137.54,137.52,20.0]
[1720732298075,20.0,137.55,137.52,20.0]
[1720732298371,20.0,137.55,137.5,17.2726]
[1720732298580,14.25,137.52,137.5,17.2726]
[1720732299599,14.25,137.52,137.5,10.0]
[1720732300587,7.2711,137.53,137.5,10.0]
[1720732300793,7.2707,137.54,137.5,10.0]
[1720732301099,20.0,137.53,137.5,10.0]
[1720732302580,20.0,137.53,137.51,10.0]
[1720732302781,20.0,137.54,137.51,10.0]
[1720732303601,27.2707,137.54,137.51,10.0]
[1720732303794,27.2707,137.54,137.5,7.2726]
[1720732304212,27.2707,137.54,137.49,18.121381]
[1720732304804,27.2707,137.54,137.5,7.2727]
[1720732305301,27.2707,137.54,137.5,17.2727]
[1720732305999,27.2707,137.54,137.5,7.2727]
[1720732306204,27.2707,137.54,137.5,17.2727]
[1720732306505,20.0,137.54,137.53,10.0]
[1720732307002,20.0,137.54,137.51,10.0]
[1720732307699,7.2716,137.52,137.49,0.848281]
[1720732308003,20.0,137.51,137.49,0.848281]
[1720732308601,7.2727,137.5,137.49,0.848281]
[1720732308801,27.2727,137.5,137.49,0.848281]
[1720732309913,20.0,137.5,137.49,0.848281]
[1720732310100,27.2727,137.5,137.49,0.848281]
[1720732311209,20.0,137.5,137.49,0.848281]
[1720732311589,27.2727,137.5,137.49,0.848281]
[1720732312788,20.0,137.5,137.49,0.848281]
[1720732313189,27.2727,137.5,137.49,0.848281]
[1720732313487,27.2727,137.5,137.46,20.0]
[1720732313488,20.0,137.5,137.46,10.0]
[1720732313689,7.2741,137.48,137.44,38.1886]
[1720732314089,48.5,137.51,137.44,38.1886]
[1720732315110,7.2741,137.48,137.44,38.1886]
[1720732315309,20.0,137.47,137.44,38.1886]
[1720732316011,20.0,137.47,137.44,45.4643]
[1720732316414,20.0,137.47,137.44,20.0]
[1720732316597,20.0,137.49,137.44,20.0]
[1720732317215,7.2738,137.48,137.44,20.0]
[1720732317421,20.0,137.47,137.44,20.0]
[1720732318321,20.0,137.47,137.44,27.2756]
[1720732318606,20.0,137.48,137.44,27.2756]
[1720732319607,20.0,137.48,137.46,20.0]
[1720732320808,20.0,137.5,137.46,20.0]
[1720732321007,7.2738,137.48,137.46,20.0]
[1720732321206,27.2743,137.47,137.46,20.0]
[1720732322713,7.2749,137.46,137.44,10.0]
[1720732322908,14.26,137.45,137.44,10.0]
[1720732323596,21.5353,137.45,137.44,10.0]
[1720732323797,34.26,137.45,137.42,10.0]
[1720732323997,21.5364,137.43,137.42,10.0]
[1720732324197,41.5364,137.43,137.42,10.0]
[1720732324911,41.5364,137.43,137.4,10.0]
[1720732325132,20.0,137.42,137.41,10.0]
[1720732326826,21.5364,137.43,137.41,10.0]
[1720732327118,20.0,137.42,137.41,10.0]
[1720732327906,41.5369,137.42,137.4,10.0]
[1720732328105,34.26,137.42,137.4,10.0]
[1720732329010,41.5372,137.42,137.4,10.0]
[1720732329327,7.2774,137.41,137.4,10.0]
[1720732329498,41.5374,137.41,137.4,10.0]
[1720732331107,41.5374,137.41,137.39,10.0]
[1720732331308,41.538,137.4,137.39,10.0]
[1720732332124,41.538,137.4,137.38,10.0]
[1720732332508,21.5385,137.39,137.38,10.0]
[1720732332705,14.26,137.39,137.38,10.0]
[1720732333205,21.5385,137.39,137.37,10.0]
[1720732333403,14.26,137.38,137.37,10.0]
[1720732333623,14.26,137.39,137.37,10.0]